fUST/lending_fUST_20240203
["ID","MTS","AMOUNT","RATE_DAILY","PERIOD"]
[313226882,1706973039437,-155.02015262,0.00027397,2]
[313226883,1706973039446,-500.0,0.00027397,2]
[313226884,1706973039455,-500.0,0.00027397,2]
[313226885,1706973039464,-372.95353061,0.00027397,2]
[313226886,1706973039473,-500.0,0.00027397,2]
[313226887,1706973039482,-500.0,0.00027397,2]
[313226888,1706973039491,-500.0,0.00027397,2]
[313226889,1706973039500,-516.25072468,0.00027397,2]
[313226890,1706973039509,-301.93124772,0.00027397,2]
[313226891,1706973039518,-505.61402559,0.00027397,7]
[313226892,1706973039527,-503.75418424,0.00027397,2]
[313226893,1706973039537,-500.0,0.00027397,2]
[313226894,1706973039546,-176.33972775,0.00027397,2]
[313226895,1706973039554,-308.37268485,0.00027397,2]
[313226896,1706973039564,-166.70098911,0.00027397,2]
[313226897,1706973039573,-500.0,0.00027397,2]
[313226899,1706973039581,-500.0,0.00027397,2]
[313226901,1706973039590,-500.0,0.00027397,2]
[313226903,1706973039599,-500.0,0.00027397,2]
[313226904,1706973039608,-500.0,0.00027397,2]
[313226905,1706973039617,-500.0,0.00027397,2]
[313226906,1706973039626,-500.0,0.00027397,2]
[313226907,1706973039634,-508.84074128,0.00027397,2]
[313226908,1706973039643,-417.62531425,0.00027397,2]
[313226909,1706973039652,-504.62288054,0.00027397,2]
[313226910,1706973039661,-500.0,0.00027397,2]
[313226911,1706973039672,-500.0,0.00027397,2]
[313226912,1706973039680,-500.0,0.00027397,2]
[313226913,1706973039689,-505.88117629,0.00027397,2]
[313226914,1706973039699,-505.61619828,0.00027397,2]
[313226915,1706973039708,-513.93419891,0.00027397,2]
[313226916,1706973039717,-320.28093465,0.00027397,2]
[313226917,1706973039726,-506.59111545,0.00027397,2]
[313226918,1706973039735,-500.0,0.00027397,2]
[313226919,1706973039744,-503.37405009,0.00027397,2]
[313226920,1706973039753,-500.0,0.00027397,2]
[313226921,1706973039762,-503.81745858,0.00027397,2]
[313226922,1706973039771,-500.0,0.00027397,2]
[313226923,1706973039781,-500.0,0.00027397,2]
[313226924,1706973039790,-525.34101276,0.00027397,2]
[313226925,1706973039799,-505.95287227,0.00027397,2]
[313226926,1706973039808,-500.0,0.00027397,2]
[313226927,1706973039817,-501.95979755,0.00027397,2]
[313226928,1706973039826,-500.0,0.00027397,2]
[313226929,1706973039835,-501.56367019,0.00027397,2]
[313226930,1706973039844,-240.43038265,0.00027397,2]
[313226931,1706973039853,-500.0,0.00027397,2]
[313226932,1706973039862,-500.0,0.00027397,2]
[313226933,1706973039872,-500.0,0.00027397,2]
[313226934,1706973039882,-180.9410393,0.00027397,2]
[313226935,1706973039891,-530.44382497,0.00027397,2]
[313226936,1706973039900,-509.16728415,0.00027397,2]
[313226937,1706973039909,-500.0,0.00027397,2]
[313226938,1706973039918,-500.0,0.00027397,2]
[313226939,1706973039929,-552.69410233,0.00027397,2]
[313226940,1706973039938,-500.0,0.00027397,2]
[313226941,1706973039947,-500.0,0.00027397,2]
[313226942,1706973039956,-500.0,0.00027397,2]
[313226943,1706973039965,-500.0,0.00027397,2]
[313226944,1706973039975,-500.0,0.00027397,2]
[313226945,1706973039984,-500.0,0.00027397,2]
[313226946,1706973039993,-500.0,0.00027397,2]
[313226947,1706973040002,-500.0,0.00027397,2]
[313226948,1706973040011,-504.73072043,0.00027397,2]
[313226949,1706973040020,-500.0,0.00027397,2]
[313226950,1706973040030,-500.0,0.00027397,2]
[313226951,1706973040039,-500.0,0.00027397,2]
[313226952,1706973040048,-500.0,0.00027397,2]
[313226953,1706973040058,-500.0,0.00027397,2]
[313226954,1706973040067,-500.0,0.00027397,2]
[313226955,1706973040076,-570.85,0.00027397,2]
[313226956,1706973040085,-921.12,0.00027397,2]
[313226957,1706973040094,-500.0,0.00027397,2]
[313226958,1706973040103,-501.37259724,0.00027397,2]
[313226959,1706973040112,-500.0,0.00027397,2]
[313226960,1706973040122,-500.0,0.00027397,2]
[313226961,1706973040131,-500.0,0.00027397,2]
[313226962,1706973040140,-500.49854135,0.00027397,2]
[313226963,1706973040149,-500.0,0.00027397,2]
[313226964,1706973040158,-506.1910347,0.00027397,2]
[313226965,1706973040167,-500.0,0.00027397,2]
[313226966,1706973040176,-500.0,0.00027397,2]
[313226967,1706973040185,-500.0,0.00027397,2]
[313226968,1706973040195,-765.33,0.00027397,2]
[313226969,1706973040204,-500.0,0.00027397,2]
[313226970,1706973040213,-500.0,0.00027397,2]
[313226971,1706973040222,-1858.28,0.00027397,2]
[313226972,1706973040231,-549.09261835,0.00027397,2]
[313226973,1706973040240,-500.0,0.00027397,2]
[313226974,1706973040249,-1099.34,0.00027397,2]
[313226975,1706973040258,-500.0,0.00027397,2]
[313226976,1706973040267,-500.0,0.00027397,2]
[313226977,1706973040280,-500.0,0.00027397,2]
[313226978,1706973040290,-6964.72,0.00027397,2]
[313226979,1706973040299,-500.0,0.00027397,2]
[313226980,1706973040309,-624.15640998,0.00027397,2]
[313226981,1706973040319,-2658.28,0.00027397,2]
[313226982,1706973040329,-500.0,0.00027397,2]
[313226983,1706973040339,-500.0,0.00027397,2]
[313226984,1706973040348,-500.0,0.00027397,2]
[313226985,1706973040358,-500.0,0.00027397,2]
[313226987,1706973040369,-1464.55,0.00027397,2]
[313226988,1706973040379,-500.0,0.00027397,2]
[313226989,1706973040388,-500.0,0.0002767,2]
[313226990,1706973040397,-500.0,0.0002767,2]
[313226991,1706973040406,-197.8681827,0.0002767,2]
[313226992,1706973040416,-500.0,0.0002767,2]
[313226994,1706973040426,-424.66872478,0.0002767,2]
[313226995,1706973040434,-500.0,0.0002767,2]
[313226996,1706973040443,-217.48851757,0.0002767,2]
[313226997,1706973040452,-500.0,0.0002767,2]
[313226998,1706973040461,-441.09943157,0.0002767,2]
[313226999,1706973040471,-500.0,0.0002767,2]
[313227000,1706973040480,-476.32961329,0.0002767,2]
[313227001,1706973040489,-548.877159,0.0002767,2]
[313227002,1706973040499,-500.0,0.0002767,2]
[313227003,1706973040508,-500.0,0.00027671,2]
[313227004,1706973040517,-500.0,0.00027671,2]
[313227005,1706973040528,-187.62398123,0.00027671,2]
[313227006,1706973040537,-500.0,0.00027671,2]
[313227007,1706973040546,-500.0,0.00027671,2]
[313227008,1706973040555,-500.0,0.00027671,2]
[313227009,1706973040564,-503.93231267,0.00027671,2]
[313227010,1706973040573,-500.0,0.00027671,2]
[313227011,1706973040582,-500.0,0.00027671,2]
[313227012,1706973040591,-504.99545555,0.00027671,2]
[313227013,1706973040601,-500.0,0.00027671,2]
[313227014,1706973040610,-500.0,0.00027671,2]
[313227015,1706973040619,-500.0,0.00027671,2]
[313227016,1706973040628,-500.0,0.00027671,2]
[313227017,1706973040638,-510.09356801,0.00027671,2]
[313227018,1706973040647,-500.0,0.00027671,2]
[313227019,1706973040656,-500.0,0.00027671,2]
[313227020,1706973040666,-500.0,0.00027671,2]
[313227021,1706973040675,-500.0,0.00027671,2]
[313227022,1706973040684,-500.0,0.00027671,2]
[313227023,1706973040693,-500.0,0.00027671,2]
[313227024,1706973040703,-500.0,0.00027671,2]
[313227025,1706973040794,-500.0,0.00027671,2]
[313227026,1706973040804,-543.0557563,0.00027671,2]
[313227027,1706973040814,-500.0,0.00027671,2]
[313227028,1706973040824,-500.0,0.00027671,2]
[313227029,1706973040833,-500.0,0.00027671,2]
[313227030,1706973040843,-500.0,0.00027671,2]
[313227031,1706973040852,-500.0,0.00027671,2]
[313227032,1706973040862,-500.0,0.00027671,2]
[313227033,1706973040871,-500.0,0.00027671,2]
[313227034,1706973040881,-500.0,0.00027671,2]
[313227035,1706973040891,-500.0,0.00027671,2]
[313227036,1706973040901,-500.0,0.00027671,2]
[313227037,1706973040911,-500.0,0.00027671,2]
[313227038,1706973040920,-570.85,0.00027671,2]
[313227039,1706973040930,-921.12,0.00027671,2]
[313227040,1706973040939,-500.0,0.00027671,2]
[313227041,1706973040948,-500.0,0.00027671,2]
[313227042,1706973040958,-500.0,0.00027671,2]
[313227043,1706973040967,-500.0,0.00027671,2]
[313227044,1706973040976,-500.0,0.00027671,2]
[313227045,1706973040986,-500.0,0.00027671,2]
[313227046,1706973040996,-765.33,0.00027671,2]
[313227047,1706973041006,-500.0,0.00027671,2]
[313227048,1706973041016,-500.0,0.00027671,2]
[313227049,1706973041027,-1858.28,0.00027671,2]
[313227050,1706973041037,-1099.34,0.00027671,2]
[313227051,1706973041048,-500.0,0.00027671,2]
[313227052,1706973041058,-500.0,0.00027671,2]
[313227053,1706973041067,-500.0,0.00027671,2]
[313227054,1706973041076,-6964.72,0.00027671,2]
[313227055,1706973041085,-500.0,0.00027671,2]
[313227056,1706973041094,-2658.28,0.00027671,2]
[313227057,1706973041104,-500.0,0.00027671,2]
[313227058,1706973041113,-500.0,0.00027671,2]
[313227059,1706973041123,-500.0,0.00027671,2]
[313227060,1706973041133,-1464.55,0.00027671,2]
[313227061,1706973041142,-500.0,0.00027671,2]
[313227062,1706973041151,-3557.4261978,0.00027676,2]
[313227063,1706973041160,-500.0,0.00027945,2]
[313227064,1706973041169,-500.0,0.00027945,2]
[313227065,1706973041178,-500.0,0.00027945,2]
[313227066,1706973041187,-500.0,0.00027945,2]
[313227067,1706973041196,-500.0,0.00027945,2]
[313227068,1706973041205,-500.0,0.00027945,2]
[313227069,1706973041215,-500.0,0.00027945,2]
[313227070,1706973041224,-500.0,0.00027945,2]
[313227071,1706973041233,-500.0,0.00027945,2]
[313227072,1706973041242,-500.0,0.00027945,2]
[313227073,1706973041251,-500.0,0.00027945,2]
[313227074,1706973041260,-500.0,0.00027945,2]
[313227075,1706973041269,-500.0,0.00027945,2]
[313227076,1706973041283,-500.0,0.00027945,2]
[313227077,1706973041294,-500.0,0.00027945,2]
[313227078,1706973041304,-500.0,0.00027945,2]
[313227079,1706973041313,-570.85,0.00027945,2]
[313227080,1706973041323,-921.12,0.00027945,2]
[313227081,1706973041332,-500.0,0.00027945,2]
[313227082,1706973041342,-500.0,0.00027945,2]
[313227083,1706973041351,-500.0,0.00027945,2]
[313227084,1706973041361,-500.0,0.00027945,2]
[313227085,1706973041370,-500.0,0.00027945,2]
[313227086,1706973041381,-765.33,0.00027945,2]
[313227087,1706973041390,-500.0,0.00027945,2]
[313227088,1706973041399,-1858.28,0.00027945,2]
[313227089,1706973041408,-1099.34,0.00027945,2]
[313227090,1706973041417,-6964.72,0.00027945,2]
[313227091,1706973041426,-2658.28,0.00027945,2]
[313227092,1706973041436,-500.0,0.00027945,2]
[313227093,1706973041445,-500.0,0.00027945,2]
[313227094,1706973041455,-500.0,0.00027945,2]
[313227095,1706973041464,-1464.55,0.00027945,2]
[313227096,1706973041473,-36791.95088406,0.00028,2]
[313227097,1706973041534,-28137.54852631,0.00028,2]
[313227098,1706973041543,-51073.52217898,0.00028,2]
[313227099,1706973041553,-155.37620403,0.00028,2]
[313227100,1706973041563,-500.0,0.00028219,2]
[313227101,1706973041572,-500.0,0.00028219,2]
[313227102,1706973041582,-500.0,0.00028219,2]
[313227103,1706973041591,-266.37695117,0.00028219,2]
[313227104,1706973041600,-151.0,0.00028219,2]
[313227105,1706973041609,-500.0,0.00028219,2]
[313227106,1706973041619,-151.0,0.00028219,2]
[313227107,1706973041628,-151.0,0.00028219,2]
[313227108,1706973041638,-500.0,0.00028219,2]
[313227109,1706973041647,-570.85,0.00028219,2]
[313227110,1706973041657,-921.12,0.00028219,2]
[313227111,1706973041667,-195.13,0.00028219,2]
[313227112,1706973041677,-500.0,0.00028219,2]
[313227113,1706973041686,-500.0,0.00028219,2]
[313227114,1706973041695,-765.33,0.00028219,2]
[313227115,1706973041705,-500.0,0.00028219,2]
[313227116,1706973041715,-1858.28,0.00028219,2]
[313227117,1706973041725,-1099.34,0.00028219,2]
[313227118,1706973041736,-4777.53658472,0.00028219,2]
[313227145,1706973045020,-155.0341075,0.00027944,4]
[313227146,1706973045031,-3310.08065671,0.00027944,2]
[313227147,1706973045042,-2187.18341528,0.00028219,2]
[313227148,1706973045051,-2658.28,0.00028219,2]
[313227149,1706973045061,-500.0,0.00028219,2]
[313227150,1706973045070,-500.0,0.00028219,2]
[313227151,1706973045080,-1153.61265933,0.00028219,2]
[313227152,1706973045091,-310.93734067,0.00028219,2]
[313227153,1706973045101,-200.0,0.000283,4]
[313227154,1706973045110,-151.0,0.00028313,2]
[313227155,1706973045119,-5000.0,0.00028486,5]
[313227156,1706973045128,-5000.0,0.00028489,5]
[313227157,1706973045138,-4206.59265933,0.00028489,5]
[313227158,1706973045150,-793.40734067,0.00028489,5]
[313227159,1706973045159,-500.0,0.00028493,2]
[313227160,1706973045168,-500.0,0.00028493,2]
[313227161,1706973045177,-500.0,0.00028493,2]
[313227162,1706973045186,-500.0,0.00028493,2]
[313227163,1706973045196,-500.0,0.00028493,2]
[313227164,1706973045205,-570.85,0.00028493,2]
[313227165,1706973045214,-921.12,0.00028493,2]
[313227166,1706973045223,-500.0,0.00028493,2]
[313227167,1706973045233,-500.0,0.00028493,2]
[313227168,1706973045244,-765.33,0.00028493,2]
[313227169,1706973045254,-500.0,0.00028493,2]
[313227170,1706973045263,-133.31094476,0.00028493,2]
[313227171,1706973045275,-1724.96905524,0.00028493,2]
[313227172,1706973045288,-1099.34,0.00028493,2]
[313227173,1706973045297,-781.96814501,0.00028493,2]
[313227174,1706973045308,-3024.57019212,0.00028493,2]
[313227212,1706973655954,380.0,0.0002,2]
[313227250,1706974081142,168.414013,0.00019561,2]
[313227253,1706974138168,24900.0,0.00019796,2]
[313227315,1706974238411,-953.79146371,0.00020235,2]
[313227318,1706974238431,-2374.85821275,0.00020235,2]
[313227320,1706974238441,-620.65722826,0.00020235,2]
[313227322,1706974238450,-1997.51914833,0.00020236,2]
[313227324,1706974238460,-562.98112702,0.00020236,2]
[313227326,1706974238469,-155.0356582,0.00020236,4]
[313227328,1706974238478,-562.98112702,0.00020236,2]
[313227330,1706974238488,-161.36698109,0.00020237,2]
[313227332,1706974238497,-213.88818253,0.00020237,2]
[313227334,1706974238507,-1744.20188823,0.00020237,2]
[313227336,1706974238516,-167.02635561,0.00020237,2]
[313227337,1706974238525,-1017.12321481,0.00020238,2]
[313227339,1706974238535,-261.63919067,0.00020238,2]
[313227341,1706974238545,-4176.84141118,0.00020239,2]
[313227344,1706974238554,-5219.85027609,0.00020239,2]
[313227345,1706974238564,-562.98112702,0.0002024,2]
[313227347,1706974238573,-5848.46839529,0.0002024,2]
[313227349,1706974238582,-2300.0,0.00020255,2]
[313227352,1706974238592,-461.15255,0.00020278,2]
[313227353,1706974238601,-245.92623635,0.00020925,2]
[313227355,1706974238610,-5000.0,0.00021051,5]
[313227357,1706974238619,-692.55475224,0.0002159,5]
[313227360,1706974238629,-155.30404275,0.00021594,2]
[313227361,1706974238642,-904.27081356,0.00021702,2]
[313227363,1706974238651,-199.40706309,0.00021702,2]
[313227365,1706974238661,-346.04207608,0.00021702,2]
[313227367,1706974238670,-1278.26817001,0.00021702,2]
[313227369,1706974238680,-155.35403325,0.00021702,2]
[313227372,1706974238690,-309.29107459,0.00021702,2]
[313227373,1706974238699,-3878.22590192,0.00021702,2]
[313227375,1706974238709,-282.50803602,0.0002186,2]
[313227377,1706974238718,-1000.0,0.00021868,2]
[313227379,1706974238728,-1000.0,0.00021868,2]
[313227381,1706974238737,-1000.0,0.00021868,2]
[313227383,1706974238746,-1000.0,0.00021868,2]
[313227385,1706974238755,-1000.0,0.00021868,2]
[313227387,1706974238765,-1000.0,0.00021868,2]
[313227390,1706974238775,-1000.0,0.00021868,2]
[313227391,1706974238784,-1000.0,0.00021868,2]
[313227393,1706974238793,-1000.0,0.00021868,2]
[313227396,1706974238804,-1000.0,0.00021868,2]
[313227397,1706974238813,-1000.0,0.00021868,2]
[313227399,1706974238822,-1000.0,0.00021868,2]
[313227402,1706974238833,-1000.0,0.00021868,2]
[313227403,1706974238842,-1000.0,0.00021868,2]
[313227405,1706974238852,-1000.0,0.00021868,2]
[313227407,1706974238861,-1000.0,0.00021868,2]
[313227409,1706974238872,-1000.0,0.00021868,2]
[313227411,1706974238881,-1000.0,0.00021868,2]
[313227413,1706974238890,-1000.0,0.00021868,2]
[313227416,1706974238899,-1000.0,0.00021868,2]
[313227417,1706974238909,-4376.935842,0.00021918,2]
[313227419,1706974238918,-166.666666,0.00021918,2]
[313227420,1706974238927,-10168.55,0.00021951,3]
[313227421,1706974238936,-12202.26,0.00021961,3]
[313227423,1706974238945,-14642.72,0.00021971,3]
[313227424,1706974238954,-169.158929,0.00021974,2]
[313227425,1706974238963,-17571.26,0.00021981,3]
[313227426,1706974238972,-1486.85751127,0.00021989,2]
[313227427,1706974238982,-1583.8500325,0.00021991,2]
[313227428,1706974238991,-426.88835692,0.00022,2]
[313227429,1706974239000,-3977.44618093,0.00022,2]
[313227430,1706974239009,-326.17134224,0.00022,2]
[313227431,1706974239018,-166.666666,0.00022431,2]
[313227432,1706974239028,-166.666666,0.00022944,2]
[313227433,1706974239038,-1262.10938839,0.00023,2]
[313227434,1706974239049,-9959.98060866,0.00023,2]
[313227435,1706974239059,-200.0,0.00023131,7]
[313227436,1706974239068,-282.50803598,0.00023194,2]
[313227437,1706974239077,-166.666666,0.00023456,2]
[313227438,1706974239086,-166.666666,0.00023969,2]
[313227439,1706974239095,-300.0,0.00023988,2]
[313227440,1706974239104,-329.63381135,0.00023989,2]
[313227441,1706974239114,-155.33135007,0.0002399,2]
[313227442,1706974239124,-230.88142086,0.00023998,2]
[313227443,1706974239135,-156.8872007,0.00023998,2]
[313227444,1706974239144,-200.0,0.00023998,2]
[313227445,1706974239154,-379.00530314,0.00023998,7]
[313227446,1706974239162,-155.05116031,0.00023998,2]
[313227447,1706974239172,-591.99312524,0.00023998,2]
[313227448,1706974239181,-913.52520602,0.00024,2]
[313227449,1706974239191,-16795.39062351,0.00024,2]
[313227450,1706974239200,-161.49632699,0.0002401,2]
[313227451,1706974239210,-166.666666,0.00024482,2]
[313227452,1706974239220,-282.50803598,0.00024529,2]
[313227453,1706974239230,-168.632783,0.00024702,2]
[313227454,1706974239239,-335.29979556,0.00025,2]
[313227455,1706974239248,-1659.13705612,0.00025365,2]
[313227456,1706974239258,-280.0,0.00025444,7]
[313227457,1706974239268,-19366.61575884,0.00025465,2]
[313227458,1706974239278,-200.0,0.00025479,2]
[313227459,1706974239289,-1395.9,0.000255,2]
[313227460,1706974239298,-29280.54925975,0.00025545,2]
[313227461,1706974239307,-374.32229926,0.00025551,2]
[313227462,1706974239316,-500.0,0.00025551,2]
[313227463,1706974239325,-500.0,0.00025551,2]
[313227464,1706974239335,-500.0,0.00025551,2]
[313227465,1706974239344,-500.0,0.00025551,2]
[313227466,1706974239353,-500.0,0.00025551,2]
[313227467,1706974239363,-400.0,0.00025551,2]
[313227468,1706974239372,-500.0,0.00025551,2]
[313227469,1706974239382,-500.0,0.00025551,2]
[313227470,1706974239391,-500.0,0.00025551,2]
[313227471,1706974239401,-250.0,0.00025551,2]
[313227472,1706974239410,-311.37143275,0.00025551,2]
[313227473,1706974239421,-500.0,0.00025551,2]
[313227474,1706974239430,-500.0,0.00025551,2]
[313227475,1706974239438,-500.0,0.00025551,2]
[313227476,1706974239448,-500.0,0.00025551,2]
[313227477,1706974239457,-500.0,0.00025551,2]
[313227478,1706974239467,-500.0,0.00025551,2]
[313227479,1706974239477,-258.06891963,0.00025551,2]
[313227480,1706974239486,-500.0,0.00025551,2]
[313227481,1706974239496,-500.0,0.00025551,2]
[313227482,1706974239505,-500.0,0.00025551,2]
[313227483,1706974239515,-500.0,0.00025551,2]
[313227484,1706974239526,-500.0,0.00025551,2]
[313227485,1706974239540,-332.96726867,0.00025551,2]
[313227486,1706974239549,-500.0,0.00025551,2]
[313227487,1706974239559,-500.0,0.00025551,2]
[313227488,1706974239569,-500.0,0.00025551,2]
[313227489,1706974239579,-500.0,0.00025551,2]
[313227490,1706974239589,-388.58437497,0.00025551,2]
[313227491,1706974239599,-383.14651293,0.00025551,2]
[313227492,1706974239608,-500.0,0.00025551,2]
[313227493,1706974239617,-500.0,0.00025551,2]
[313227494,1706974239627,-500.0,0.00025551,2]
[313227495,1706974239636,-500.0,0.00025551,2]
[313227496,1706974239648,-500.0,0.00025551,2]
[313227497,1706974239657,-500.0,0.00025551,2]
[313227498,1706974239667,-500.0,0.00025551,2]
[313227499,1706974239678,-500.0,0.00025551,2]
[313227500,1706974239687,-500.0,0.00025551,2]
[313227501,1706974239697,-500.0,0.00025551,2]
[313227502,1706974239706,-500.0,0.00025551,2]
[313227503,1706974239715,-500.0,0.00025551,2]
[313227504,1706974239725,-500.0,0.00025551,2]
[313227505,1706974239734,-500.0,0.00025551,2]
[313227506,1706974239744,-500.0,0.00025551,2]
[313227508,1706974239753,-500.0,0.00025551,2]
[313227510,1706974239762,-500.0,0.00025551,2]
[313227512,1706974239859,-391.0,0.00025551,2]
[313227513,1706974239871,-500.0,0.00025551,2]
[313227514,1706974239881,-500.0,0.00025551,2]
[313227515,1706974239891,-500.0,0.00025551,2]
[313227516,1706974239901,-500.0,0.00025551,2]
[313227517,1706974239911,-500.0,0.00025551,2]
[313227518,1706974239921,-1819.07398199,0.00025553,2]
[313227519,1706974239931,-78544.30291823,0.00025553,2]
[313227520,1706974239940,-13699.52849879,0.00025561,2]
[313227521,1706974239949,-282.50803598,0.00025863,2]
[313227522,1706974239958,-3557.4261978,0.000259,2]
[313227523,1706974239968,-620.01050943,0.0002673,2]
[313227524,1706974239977,-1645.97837334,0.00027068,4]
[313227525,1706974239986,-48933.02600869,0.000271,2]
[313227526,1706974239995,-282.50803598,0.00027197,2]
[313227527,1706974240004,-52071.19511397,0.00027297,2]
[313227528,1706974240014,-500.92278307,0.00027358,5]
[313227529,1706974240023,-500.0,0.00027397,2]
[313227530,1706974240033,-516.50741356,0.00027397,2]
[313227531,1706974240042,-504.99545555,0.00027397,2]
[313227532,1706974240053,-500.0,0.00027397,2]
[313227533,1706974240062,-503.93231267,0.00027397,2]
[313227534,1706974240072,-500.0,0.00027397,2]
[313227535,1706974240082,-500.0,0.00027397,2]
[313227536,1706974240093,-504.62288054,0.00027397,2]
[313227537,1706974240103,-505.88117629,0.00027397,2]
[313227538,1706974240112,-500.0,0.00027397,2]
[313227539,1706974240121,-525.34101276,0.00027397,2]
[313227540,1706974240130,-500.0,0.00027397,2]
[313227541,1706974240139,-500.0,0.00027397,2]
[313227542,1706974240149,-500.0,0.00027397,2]
[313227543,1706974240158,-500.0,0.00027397,2]
[313227544,1706974240167,-500.0,0.00027397,2]
[313227545,1706974240177,-500.0,0.00027397,2]
[313227546,1706974240186,-500.0,0.00027397,2]
[313227547,1706974240195,-504.73072043,0.00027397,2]
[313227548,1706974240204,-500.0,0.00027397,2]
[313227549,1706974240213,-320.28093465,0.00027397,2]
[313227550,1706974240223,-505.61619828,0.00027397,2]
[313227551,1706974240232,-501.37259724,0.00027397,2]
[313227552,1706974240241,-500.0,0.00027397,2]
[313227553,1706974240250,-503.37405009,0.00027397,2]
[313227554,1706974240259,-500.0,0.00027397,2]
[313227555,1706974240269,-500.0,0.00027397,2]
[313227556,1706974240280,-500.0,0.00027397,2]
[313227557,1706974240290,-505.95287227,0.00027397,2]
[313227558,1706974240299,-501.95979755,0.00027397,2]
[313227559,1706974240308,-240.43038265,0.00027397,2]
[313227560,1706974240317,-501.56367019,0.00027397,2]
[313227561,1706974240327,-500.0,0.00027397,2]
[313227562,1706974240336,-500.0,0.00027397,2]
[313227564,1706974240345,-530.44382497,0.00027397,2]
[313227566,1706974240355,-500.0,0.00027397,2]
[313227568,1706974240364,-500.0,0.00027397,2]
[313227570,1706974240373,-509.16728415,0.00027397,2]
[313227571,1706974240382,-180.9410393,0.00027397,2]
[313227572,1706974240391,-155.02015262,0.00027397,2]
[313227573,1706974240401,-500.0,0.00027397,2]
[313227574,1706974240410,-500.0,0.00027397,2]
[313227575,1706974240418,-500.0,0.00027397,2]
[313227576,1706974240427,-500.0,0.00027397,2]
[313227577,1706974240437,-500.0,0.00027397,2]
[313227578,1706974240446,-505.91505518,0.00027397,2]
[313227579,1706974240454,-500.0,0.00027397,2]
[313227580,1706974240463,-552.69410233,0.00027397,2]
[313227581,1706974240472,-500.0,0.00027397,2]
[313227582,1706974240481,-500.0,0.00027397,2]
[313227583,1706974240490,-500.0,0.00027397,2]
[313227584,1706974240499,-500.0,0.00027397,2]
[313227585,1706974240509,-500.0,0.00027397,2]
[313227586,1706974240518,-500.0,0.00027397,2]
[313227587,1706974240531,-500.0,0.00027397,2]
[313227588,1706974240540,-500.0,0.00027397,2]
[313227589,1706974240549,-500.0,0.00027397,2]
[313227590,1706974240558,-301.93124772,0.00027397,2]
[313227591,1706974240568,-505.61402559,0.00027397,7]
[313227592,1706974240577,-503.63711727,0.00027397,2]
[313227593,1706974240586,-500.0,0.00027397,2]
[313227594,1706974240595,-500.0,0.00027397,2]
[313227595,1706974240604,-500.0,0.00027397,2]
[313227596,1706974240613,-516.25072468,0.00027397,2]
[313227597,1706974240622,-500.0,0.00027397,2]
[313227598,1706974240634,-844.36,0.00027397,2]
[313227599,1706974240643,-506.1910347,0.00027397,2]
[313227600,1706974240652,-500.0,0.00027397,2]
[313227601,1706974240661,-523.28,0.00027397,2]
[313227602,1706974240671,-503.75418424,0.00027397,2]
[313227603,1706974240681,-500.0,0.00027397,2]
[313227604,1706974240691,-500.0,0.00027397,2]
[313227605,1706974240700,-176.33972775,0.00027397,2]
[313227606,1706974240709,-500.0,0.00027397,2]
[313227607,1706974240720,-549.09261835,0.00027397,2]
[313227608,1706974240729,-332.73879652,0.00027397,2]
[313227609,1706974240739,-500.0,0.00027397,2]